bitfinex-derivatives/quotes_BTCF0:USTF0_20250822
["timestamp","ask_amount","ask_price","bid_price","bid_amount"]
[1755880646978,0.41565,116520.0,116510.0,0.76650159]
[1755880647368,0.77645,116520.0,116510.0,0.34770159]
[1755880647569,1.18147817,116520.0,116510.0,0.43553159]
[1755880647769,0.77645,116520.0,116510.0,0.43553159]
[1755880647977,0.77645,116520.0,116510.0,0.49740159]
[1755880648278,0.77645,116520.0,116510.0,0.43589316]
[1755880649870,0.77645,116520.0,116510.0,0.37402316]
[1755880650576,0.77645,116520.0,116510.0,0.43589316]
[1755880650979,1.18147817,116520.0,116510.0,0.43589316]
[1755880651175,0.77645,116520.0,116510.0,0.43589316]
[1755880651673,0.77645,116520.0,116510.0,0.37402316]
[1755880651978,0.77645,116520.0,116510.0,0.33299316]
[1755880652186,0.77645,116520.0,116510.0,0.43589316]
[1755880653276,1.18147817,116520.0,116510.0,0.43589316]
[1755880653578,1.43147817,116520.0,116510.0,0.0022]
[1755880655272,1.43147817,116520.0,116510.0,0.0012]
[1755880655474,1.43147817,116520.0,116510.0,0.0002]
[1755880656282,1.02645,116520.0,116510.0,0.31068]
[1755880656474,0.77645,116520.0,116510.0,0.41626]
[1755880656669,0.77645,116520.0,116510.0,0.90711687]
[1755880656875,0.49444,116520.0,116510.0,0.90711687]
[1755880657085,0.7368,116520.0,116510.0,0.82128817]
[1755880657279,0.13364,116520.0,116510.0,0.90711687]
[1755880657578,0.88131544,116530.0,116520.0,0.5018813]
[1755880657782,0.88131544,116530.0,116520.0,0.82128817]
[1755880657981,0.88131544,116530.0,116520.0,0.41626]
[1755880658690,0.88131544,116530.0,116520.0,0.35439]
[1755880660084,0.88131544,116530.0,116520.0,0.41626]
[1755880661290,0.88131544,116530.0,116520.0,0.35439]
[1755880661484,0.88131544,116530.0,116520.0,0.31336]
[1755880661884,0.88131544,116530.0,116520.0,0.41626]
[1755880662389,0.88131544,116530.0,116520.0,0.35439]
[1755880662888,0.88131544,116530.0,116520.0,0.31336]
[1755880663585,1.28634361,116530.0,116520.0,0.31336]
[1755880664082,1.28634361,116530.0,116520.0,0.12095]
[1755880664288,1.28634361,116530.0,116520.0,0.0002]
[1755880664585,0.88131544,116530.0,116520.0,0.23668]
[1755880664790,1.28634361,116530.0,116520.0,0.26209]
[1755880664985,1.26729217,116530.0,116520.0,0.02561]
[1755880665184,0.862264,116530.0,116520.0,0.0002]
[1755880665578,1.51729217,116530.0,116520.0,0.0002]
[1755880669501,1.112264,116530.0,116520.0,0.12182]
[1755880669802,1.51729217,116530.0,116520.0,0.12182]
[1755880670002,1.51729217,116530.0,116520.0,0.0002]
[1755880670997,0.751464,116530.0,116520.0,0.0002]
[1755880671203,1.51729217,116530.0,116520.0,0.0002]
[1755880671403,1.1321883,116530.0,116520.0,0.0002]
[1755880671604,1.53721647,116530.0,116520.0,0.0002]
[1755880671805,1.1321883,116530.0,116520.0,0.0002]
[1755880672000,1.53721647,116530.0,116520.0,0.0002]
[1755880672408,1.1321883,116530.0,116520.0,0.0968]
[1755880672707,1.1321883,116530.0,116520.0,0.34127]
[1755880672708,1.53721647,116530.0,116520.0,0.34127]
[1755880672907,1.1321883,116530.0,116520.0,0.34127]
[1755880673109,1.7997883,116530.0,116520.0,0.40136]
[1755880673908,1.7997883,116530.0,116520.0,0.34127]
[1755880674502,1.7997883,116530.0,116520.0,0.20139]
[1755880674704,2.20481647,116530.0,116520.0,0.12182]
[1755880674905,2.20481647,116530.0,116520.0,0.0002]
[1755880676811,2.20481647,116530.0,116520.0,0.0968]
[1755880677105,2.20481647,116530.0,116520.0,0.2617]
[1755880677314,2.20481647,116530.0,116520.0,0.02522]
[1755880677501,2.20481647,116530.0,116520.0,0.12182]
[1755880678010,1.7997883,116530.0,116520.0,0.2617]
[1755880678203,1.7997883,116530.0,116520.0,0.4871813]
[1755880678605,1.4389883,116530.0,116520.0,0.4871813]
[1755880678914,1.3993383,116530.0,116520.0,0.8479813]
[1755880679104,1.2511583,116530.0,116520.0,1.25300947]
[1755880679806,1.2511583,116530.0,116520.0,0.8479813]
[1755880680005,0.41788697,116540.0,116530.0,0.1509422]
[1755880680215,1.35484532,116540.0,116530.0,0.89220037]
[1755880680404,1.17731532,116540.0,116530.0,1.14220037]
[1755880681204,0.01991835,116540.0,116530.0,1.14220037]
[1755880681401,0.02091835,116540.0,116530.0,1.50300037]
[1755880681706,0.02291835,116540.0,116530.0,1.50300037]
[1755880681913,0.003,116540.0,116530.0,1.50300037]
[1755880682614,0.003,116540.0,116530.0,1.0979722]
[1755880682809,0.09522,116540.0,116530.0,1.50300037]
[1755880683103,0.15748,116540.0,116530.0,1.50300037]
[1755880683505,0.15748,116540.0,116530.0,1.0979722]
[1755880683506,0.29539,116540.0,116530.0,1.0979722]
[1755880683708,0.29539,116540.0,116530.0,1.50300037]
[1755880683910,1.31873,116540.0,116530.0,0.76216]
[1755880684712,1.31873,116540.0,116530.0,0.8479724]
[1755880684910,1.31873,116540.0,116530.0,1.25300057]
[1755880686020,0.40201,116540.0,116530.0,1.25300057]
[1755880686515,0.40201,116540.0,116530.0,0.8479724]
[1755880687220,0.40201,116540.0,116530.0,1.25300057]
[1755880691526,0.40201,116540.0,116530.0,1.52210057]
[1755880691822,0.4481951,116540.0,116530.0,1.52210057]
[1755880692027,0.4878151,116540.0,116530.0,1.52210057]
[1755880692216,0.8486151,116540.0,116530.0,1.07548817]
[1755880692414,1.25364327,116540.0,116530.0,0.33443]
[1755880692720,1.25364327,116540.0,116530.0,0.2693]
[1755880693225,0.8486151,116540.0,116530.0,0.2693]
[1755880693519,1.50364327,116540.0,116530.0,0.0002]
[1755880694919,0.2063498,116520.0,116510.0,0.06448]
[1755880695126,0.2063498,116520.0,116510.0,0.02502]
[1755880695127,2.16983797,116520.0,116510.0,0.02502]
[1755880695320,0.4885771,116510.0,116500.0,0.83933212]
[1755880697111,0.8493771,116510.0,116500.0,0.47853212]
[1755880697315,1.25440527,116510.0,116500.0,0.11443212]
[1755880697520,1.25440527,116510.0,116500.0,0.1037204]
[1755880697716,2.16956527,116510.0,116500.0,0.3322304]
[1755880697926,2.16956527,116510.0,116500.0,0.4665304]
[1755880698229,1.7644971,116510.0,116500.0,0.4685304]
[1755880698429,1.7644971,116510.0,116500.0,0.47889317]
[1755880698825,1.7644971,116510.0,116500.0,0.56272767]
[1755880699019,1.7644971,116510.0,116500.0,0.56572767]
[1755880699523,1.7644971,116510.0,116500.0,0.56472767]
[1755880699724,1.7644971,116510.0,116500.0,0.56372767]
[1755880699925,1.7644971,116510.0,116500.0,0.47889317]
[1755880700223,1.7644971,116510.0,116500.0,0.56472767]
[1755880701629,1.7644971,116510.0,116500.0,0.96975584]
[1755880701932,1.7644971,116510.0,116500.0,0.47889317]
[1755880702230,1.7644971,116510.0,116500.0,0.56472767]
[1755880702425,1.7644971,116510.0,116500.0,0.01939197]
[1755880702628,2.41952527,116510.0,116500.0,0.0022]
[1755880702927,2.43916757,116510.0,116500.0,0.0022]
[1755880703225,0.16451,116480.0,116470.0,0.92138691]
[1755880703420,0.40452,116480.0,116470.0,1.32641508]
[1755880703624,0.22639,116480.0,116470.0,1.32641508]
[1755880703826,0.0956,116480.0,116470.0,1.38792351]
[1755880704222,1.15469,116490.0,116480.0,0.4732293]
[1755880704417,1.15469,116490.0,116480.0,1.23905747]
[1755880704623,1.15469,116490.0,116480.0,0.8340293]
[1755880704830,1.15469,116490.0,116480.0,1.23905747]
[1755880705728,1.11483,116490.0,116480.0,1.23905747]
[1755880705927,1.11483,116490.0,116480.0,1.24105747]
[1755880706233,1.15469,116490.0,116480.0,1.24105747]
[1755880706436,1.15469,116490.0,116480.0,1.25160132]
[1755880706830,1.15469,116490.0,116480.0,1.25260132]
[1755880707428,1.15469,116490.0,116480.0,0.84757315]
[1755880707633,1.15469,116490.0,116480.0,1.25260132]
[1755880708037,1.15469,116490.0,116480.0,0.84757315]
[1755880708334,1.15469,116490.0,116480.0,1.25260132]
[1755880708539,1.15469,116490.0,116480.0,0.84757315]
[1755880708930,1.15469,116490.0,116480.0,1.25260132]
[1755880709238,1.55971817,116490.0,116480.0,0.12825385]
[1755880709742,1.15469,116490.0,116480.0,0.21410305]
[1755880710237,1.15469,116490.0,116480.0,0.03811385]
[1755880710435,1.15469,116490.0,116480.0,0.01354385]
[1755880711438,1.15469,116490.0,116480.0,0.34840305]
[1755880711939,1.15469,116490.0,116480.0,0.84757305]
[1755880712137,1.15469,116490.0,116480.0,1.52170122]
[1755880712536,1.15469,116490.0,116480.0,1.11667305]
[1755880712736,1.15469,116490.0,116480.0,1.52170122]
[1755880715238,1.15469,116490.0,116480.0,1.11667305]
[1755880715438,1.15469,116490.0,116480.0,1.52170122]
[1755880716241,1.17969,116500.0,116490.0,0.1507719]
[1755880716435,1.31796,116500.0,116490.0,0.87845007]
[1755880717041,1.4037945,116500.0,116490.0,0.87845007]
[1755880718043,1.4037945,116500.0,116490.0,0.4734219]
[1755880718255,1.31796,116500.0,116490.0,0.87845007]
[1755880718444,0.40452,116500.0,116490.0,1.23925007]
[1755880719638,0.22639,116500.0,116490.0,1.23925007]
[1755880719844,1.31724,116510.0,116500.0,0.4732145]
[1755880720047,1.31724,116510.0,116500.0,0.87844267]
[1755880720249,0.22639,116510.0,116500.0,0.87844267]
[1755880720546,0.8086836,116520.0,116510.0,0.38738]
[1755880720746,0.40452,116520.0,116510.0,0.87843537]
[1755880720938,1.31712,116520.0,116510.0,0.87843537]
[1755880721240,1.31712,116520.0,116510.0,1.23923537]
[1755880721436,0.40452,116520.0,116510.0,1.23923537]
[1755880721636,0.26625,116520.0,116510.0,1.23923537]
[1755880721841,0.22639,116520.0,116510.0,1.23923537]
[1755880722150,0.36466,116520.0,116510.0,0.8342072]
[1755880722349,0.36466,116520.0,116510.0,1.23923537]
[1755880722843,0.9523,116530.0,116510.0,1.15340817]
[1755880723047,0.01962594,116530.0,116520.0,2.15130797]
[1755880723340,0.01962594,116530.0,116520.0,2.15150797]
[1755880723546,0.01962594,116530.0,116520.0,1.7464798]
[1755880723736,0.01962594,116530.0,116520.0,2.15150797]
[1755880723937,0.20355594,116530.0,116520.0,2.15150797]
[1755880724137,0.37795594,116530.0,116520.0,2.15150797]
[1755880724339,0.41781594,116530.0,116520.0,2.15150797]
[1755880724544,0.41781594,116530.0,116520.0,1.7464798]
[1755880724751,0.41781594,116530.0,116520.0,2.15150797]
[1755880724951,0.41881594,116530.0,116520.0,1.0841998]
[1755880725140,0.41881594,116530.0,116520.0,1.48922797]
[1755880725340,0.41881594,116530.0,116520.0,1.0841998]
[1755880725541,0.41981594,116530.0,116520.0,1.48922797]
[1755880725840,0.41981594,116530.0,116520.0,1.0841998]
[1755880726245,0.41981594,116530.0,116520.0,1.48922797]
[1755880726446,0.82484411,116530.0,116520.0,0.61408]
[1755880726746,0.82484411,116530.0,116520.0,0.74527]
[1755880727049,0.41981594,116530.0,116520.0,0.8310898]
[1755880727948,0.41981594,116530.0,116520.0,1.23611797]
[1755880728151,0.41981594,116530.0,116520.0,0.8310898]
[1755880728351,0.41981594,116530.0,116520.0,1.23611797]
[1755880729246,0.41981594,116530.0,116520.0,0.8310898]
[1755880729446,0.41981594,116530.0,116520.0,1.23611797]
[1755880729849,0.41981594,116530.0,116520.0,0.8310898]
[1755880731557,0.41981594,116530.0,116520.0,1.23611797]
[1755880731854,0.37995594,116530.0,116520.0,1.23611797]
[1755880732249,0.3799583,116530.0,116520.0,0.8310898]
[1755880732456,0.4158283,116530.0,116520.0,0.8310898]
[1755880732650,0.4158283,116530.0,116520.0,1.23611797]
[1755880732848,0.4158283,116530.0,116520.0,1.50521797]
[1755880734047,0.4158283,116530.0,116520.0,1.1001898]
[1755880734355,0.2480183,116530.0,116520.0,1.50521797]
[1755880734749,0.3799583,116530.0,116520.0,1.50521797]
[1755880735060,0.4158283,116530.0,116520.0,1.50521807]
[1755880735250,0.002,116530.0,116520.0,1.90857433]
[1755880735556,0.64569,116550.0,116540.0,0.38747]
[1755880735855,0.69051783,116550.0,116540.0,0.87850337]
[1755880736055,0.69051783,116550.0,116540.0,0.4834914]
[1755880736250,0.73015783,116550.0,116540.0,0.88851957]
[1755880736451,0.76602783,116550.0,116540.0,0.88851957]
[1755880737548,0.76602783,116550.0,116540.0,0.3976862]
[1755880737852,0.76802783,116550.0,116540.0,0.88851957]
[1755880738155,0.77102783,116550.0,116540.0,0.88851957]
[1755880738953,0.77102783,116550.0,116540.0,0.95551801]
[1755880739353,0.77102783,116550.0,116540.0,0.46468464]
[1755880739657,1.426056,116550.0,116540.0,0.09079844]
[1755880739856,1.426056,116550.0,116540.0,0.18459844]
[1755880740662,1.02102783,116550.0,116540.0,0.94550181]
[1755880740960,1.02102783,116550.0,116540.0,0.54047364]
[1755880741163,1.426056,116550.0,116540.0,0.45466844]
[1755880741461,1.426056,116550.0,116540.0,0.35674844]
[1755880741852,1.426056,116550.0,116540.0,0.18459844]
[1755880742258,1.02102783,116550.0,116540.0,0.18459844]
[1755880742453,1.426056,116550.0,116540.0,0.18459844]
[1755880742762,1.426056,116550.0,116540.0,0.31578844]
[1755880743060,1.426056,116550.0,116540.0,0.18459844]
[1755880743763,1.426056,116550.0,116540.0,0.09079844]
[1755880743958,1.02102783,116550.0,116540.0,0.18459844]
[1755880744160,1.426056,116550.0,116540.0,0.18459844]
[1755880744758,1.426056,116550.0,116540.0,0.09079844]
[1755880744947,1.426056,116550.0,116540.0,0.06719844]
[1755880745350,1.176056,116550.0,116540.0,0.06719844]
[1755880745763,1.176056,116550.0,116540.0,0.16099844]
[1755880745949,1.176056,116550.0,116540.0,0.18459844]
[1755880746150,1.176056,116550.0,116540.0,0.31578844]
[1755880746357,1.176056,116550.0,116540.0,0.40159364]
[1755880746762,1.176056,116550.0,116540.0,0.06719844]
[1755880746961,0.77102783,116550.0,116540.0,0.06719844]
[1755880747167,1.176056,116550.0,116540.0,0.06719844]
[1755880747554,1.426056,116550.0,116540.0,0.0002]
[1755880747864,1.02102783,116550.0,116540.0,0.0002]
[1755880748060,1.426056,116550.0,116540.0,0.0002]
[1755880748255,1.02102783,116550.0,116540.0,0.0002]
[1755880748566,1.426056,116550.0,116540.0,0.4734752]
[1755880748767,1.02102783,116550.0,116540.0,0.4734752]
[1755880749062,1.67966783,116550.0,116540.0,0.4734752]
[1755880751364,1.67966783,116550.0,116540.0,0.25648]
[1755880751570,2.084696,116550.0,116540.0,0.19537]
[1755880751767,2.084696,116550.0,116540.0,0.15856]
[1755880752067,2.084696,116550.0,116540.0,0.0002]
[1755880753570,2.334696,116550.0,116540.0,0.0002]
[1755880753766,0.38007,116540.0,116530.0,0.2691]
[1755880753963,0.16189,116530.0,116520.0,0.01742809]
[1755880754167,1.83571817,116530.0,116520.0,0.01742809]
[1755880754362,1.43069,116530.0,116520.0,0.24117809]
[1755880754661,1.83571817,116530.0,116520.0,0.26477809]
[1755880754863,1.43069,116530.0,116520.0,0.26477809]
[1755880755062,1.43069,116530.0,116520.0,0.55709909]
[1755880755266,1.43069,116530.0,116520.0,0.96212726]
[1755880755468,1.06989,116530.0,116520.0,0.87630726]
[1755880756069,1.06989,116530.0,116520.0,0.47127909]
[1755880756970,1.83571817,116530.0,116520.0,0.19507909]
[1755880757169,1.83571817,116530.0,116520.0,0.19527909]
[1755880757371,1.43069,116530.0,116520.0,0.19527909]
[1755880757567,1.83571817,116530.0,116520.0,0.19527909]
[1755880757770,1.43069,116530.0,116520.0,0.33259909]
[1755880757971,1.43069,116530.0,116520.0,0.41159909]
[1755880758172,1.43069,116530.0,116520.0,0.47405909]
[1755880758374,1.06989,116530.0,116520.0,0.47405909]
[1755880758576,1.06989,116530.0,116520.0,0.92067909]
[1755880758976,1.06933,116530.0,116520.0,0.92067909]
[1755880759378,1.06933,116530.0,116520.0,0.83485909]
[1755880760376,1.03334,116530.0,116520.0,1.32570726]
[1755880760681,0.12602,116530.0,116520.0,1.32570726]
[1755880762378,1.0705,116540.0,116530.0,0.2385026]
[1755880762581,0.08732,116540.0,116530.0,1.24235077]
[1755880762887,0.16322,116540.0,116530.0,0.8373226]
[1755880763087,0.16322,116540.0,116530.0,1.24235077]
[1755880763292,0.19163513,116540.0,116530.0,1.24235077]
[1755880763497,0.19163513,116540.0,116530.0,0.8373226]
[1755880763798,0.19163513,116540.0,116530.0,1.24235077]
[1755880763994,0.19363513,116540.0,116530.0,0.8373226]
[1755880764195,0.19363513,116540.0,116530.0,1.24235077]
[1755880764389,0.19463513,116540.0,116530.0,1.24235077]
[1755880765095,0.19463513,116540.0,116530.0,0.8373226]
[1755880765695,0.28044033,116540.0,116530.0,0.8373226]
[1755880766394,0.28044033,116540.0,116530.0,0.75151]
[1755880766695,0.28044033,116540.0,116530.0,0.39071]
[1755880769590,0.28044033,116540.0,116530.0,0.4765226]
[1755880770182,0.28044033,116540.0,116530.0,0.39071]
[1755880770382,0.6854685,116540.0,116530.0,0.15289]
[1755880770583,0.6854685,116540.0,116530.0,0.32825]
[1755880770791,0.28044033,116540.0,116530.0,0.4765226]
[1755880770994,1.14218033,116540.0,116530.0,1.24235077]
[1755880771196,1.08053033,116540.0,116530.0,1.24235077]
[1755880771494,0.10820033,116540.0,116530.0,1.24235077]
[1755880772791,0.23965033,116540.0,116530.0,0.8373226]
[1755880772997,0.27489033,116540.0,116530.0,0.8373226]
[1755880773296,0.1761252,116540.0,116530.0,1.24235077]
[1755880773496,0.1144752,116540.0,116530.0,1.24235077]
[1755880773697,0.003,116540.0,116530.0,1.24235077]
[1755880773894,0.003,116540.0,116530.0,2.39799077]
[1755880774199,1.4518394,116560.0,116550.0,0.4763079]
[1755880774498,1.47123463,116560.0,116550.0,0.4765079]
[1755880774698,1.43252463,116560.0,116550.0,0.4765079]
[1755880775495,1.47415463,116560.0,116550.0,0.4765079]
[1755880775794,1.47715463,116560.0,116550.0,0.4765079]
[1755880776198,1.56295103,116560.0,116550.0,0.4765079]
[1755880776896,1.56595103,116560.0,116550.0,0.4765079]
[1755880777490,0.67082103,116560.0,116550.0,0.39071]
[1755880777689,1.57618103,116560.0,116550.0,0.39071]
[1755880778997,1.9812092,116560.0,116550.0,0.32825]
[1755880779600,1.57618103,116560.0,116550.0,0.32825]
[1755880779896,1.9812092,116560.0,116550.0,0.32825]
[1755880780099,1.9812092,116560.0,116550.0,0.29021]
[1755880780689,1.9812092,116560.0,116550.0,0.0002]
[1755880782395,2.2312092,116560.0,116550.0,0.0002]
[1755880783199,2.2312092,116560.0,116550.0,0.22395]
[1755880783400,2.2312092,116560.0,116550.0,0.24741]
[1755880784603,2.2312092,116560.0,116550.0,0.0002]
[1755880784997,2.2312092,116560.0,116550.0,0.08554]
[1755880786603,1.82618103,116560.0,116550.0,0.08554]
[1755880786804,2.2312092,116560.0,116550.0,0.08554]
[1755880787100,2.2312092,116560.0,116550.0,0.2204]
[1755880787403,2.2312092,116560.0,116550.0,0.08554]
[1755880787705,2.2312092,116560.0,116550.0,0.0002]
[1755880789410,0.16798,116540.0,116530.0,0.38217]
[1755880789601,1.45181523,116540.0,116530.0,0.38217]
[1755880789798,1.45181523,116540.0,116530.0,0.15145]
[1755880789799,1.8568434,116540.0,116530.0,0.15145]
[1755880790105,1.8568434,116540.0,116530.0,0.10985]
[1755880790307,1.8568434,116540.0,116530.0,0.24471]
[1755880790607,1.9436486,116540.0,116530.0,0.24471]
[1755880790906,1.53830043,116540.0,116530.0,0.38217]
[1755880791092,0.23079043,116540.0,116530.0,1.23381077]
[1755880791294,0.23079043,116540.0,116530.0,0.8287826]
[1755880791505,0.23079043,116540.0,116530.0,1.23381077]
[1755880791715,0.27518043,116540.0,116530.0,1.23381077]
[1755880792007,0.27518043,116540.0,116530.0,0.8287826]
[1755880793196,0.2557852,116540.0,116530.0,0.74297]
[1755880793405,0.27522887,116540.0,116530.0,1.14819817]
[1755880793601,0.27522887,116540.0,116530.0,0.60831]
[1755880793906,0.68025704,116540.0,116530.0,0.32379]
[1755880794106,0.68025704,116540.0,116530.0,0.11005]
[1755880794506,0.68025704,116540.0,116530.0,0.24491]
[1755880794804,0.63602887,116540.0,116530.0,0.08554]
[1755880795002,1.04105704,116540.0,116530.0,0.08554]
[1755880795197,0.63602887,116540.0,116530.0,0.28219]
[1755880795397,1.04105704,116540.0,116530.0,0.32379]
[1755880795600,1.04105704,116540.0,116530.0,0.28651]
[1755880796198,1.04105704,116540.0,116530.0,0.11005]
[1755880796702,0.63602887,116540.0,116530.0,0.0002]
[1755880797305,1.04105704,116540.0,116530.0,0.0002]
[1755880797607,1.29105704,116540.0,116520.0,0.01742809]
[1755880797908,1.83580817,116530.0,116520.0,0.01742809]
[1755880798104,1.45022367,116530.0,116520.0,0.01742809]
[1755880798303,1.85525184,116530.0,116520.0,0.01742809]
[1755880798499,1.75661184,116530.0,116510.0,0.00996888]
[1755880798707,0.57248817,116520.0,116510.0,0.2202]
[1755880799008,0.57248817,116520.0,116510.0,0.32237707]
[1755880799511,0.93328817,116520.0,116510.0,0.32237707]
[1755880799803,0.93328817,116520.0,116510.0,0.15427586]
[1755880800198,0.52826,116520.0,116510.0,0.31364586]
[1755880800396,0.52826,116520.0,116510.0,0.32301011]
[1755880800610,0.93328817,116520.0,116510.0,0.09344586]
[1755880800802,0.52826,116520.0,116510.0,0.17878586]
[1755880801000,0.93328817,116520.0,116510.0,0.31584586]
[1755880801318,0.52826,116520.0,116510.0,0.32530846]
[1755880801609,0.52826,116520.0,116510.0,0.95262393]
[1755880801802,1.43034,116520.0,116510.0,0.54859576]
[1755880802003,1.43034,116520.0,116510.0,0.95362393]
[1755880802508,1.43034,116520.0,116510.0,0.54859576]
[1755880804304,1.83536817,116520.0,116510.0,0.39472586]
[1755880804620,1.83536817,116520.0,116510.0,0.35744586]
[1755880805714,1.83536817,116520.0,116510.0,0.36689482]
[1755880805915,1.43034,116520.0,116510.0,0.35744586]
[1755880806212,1.83536817,116520.0,116510.0,0.35744586]
[1755880806612,1.83536817,116520.0,116510.0,0.36716987]
[1755880806808,1.83536817,116520.0,116510.0,0.95388534]
[1755880806809,0.16459,116520.0,116510.0,0.95388534]
[1755880807005,1.06878,116520.0,116510.0,1.31468534]
[1755880807708,1.06878,116520.0,116510.0,0.90965717]
[1755880807912,0.16746,116520.0,116510.0,1.31468534]
[1755880808211,1.06415,116520.0,116510.0,0.95388534]
[1755880808412,1.06415,116520.0,116510.0,1.31468534]
[1755880808607,1.06415,116520.0,116510.0,0.95388534]
[1755880809006,0.16746,116520.0,116510.0,0.54885717]
[1755880809205,1.06862,116520.0,116510.0,0.54885717]
[1755880809913,1.47364817,116520.0,116510.0,0.46302987]
[1755880810107,1.47364817,116520.0,116510.0,0.31813717]
[1755880810309,1.47364817,116520.0,116510.0,0.45299717]
[1755880810814,1.06862,116520.0,116510.0,0.45299717]
[1755880811311,1.06862,116520.0,116510.0,0.54885717]
[1755880812200,1.06862,116520.0,116510.0,0.46302987]
[1755880812509,1.06862,116520.0,116510.0,0.36716987]
[1755880813898,1.06862,116520.0,116510.0,0.19070987]
[1755880814304,1.06862,116520.0,116510.0,0.32230987]
[1755880814515,1.06862,116520.0,116510.0,0.40813717]
[1755880814814,1.06862,116520.0,116510.0,0.54559717]
[1755880815014,0.16746,116520.0,116510.0,0.54559717]
[1755880815201,1.06774,116520.0,116510.0,0.95062534]
[1755880816315,1.06774,116520.0,116510.0,0.54559717]
[1755880818216,1.06487,116520.0,116510.0,0.54559717]
[1755880818415,1.06487,116520.0,116510.0,0.95062534]
[1755880821120,1.06487,116520.0,116510.0,0.54559717]
[1755880821619,1.1506899,116520.0,116510.0,0.54559717]
[1755880822508,1.1506899,116520.0,116510.0,0.95062534]
[1755880823321,1.1506899,116520.0,116510.0,0.54559717]
[1755880823521,1.1506899,116520.0,116510.0,0.6071056]
[1755880824314,1.1506899,116520.0,116510.0,0.9679056]
[1755880824621,1.1506899,116520.0,116510.0,1.37293377]
[1755880824830,1.1506899,116520.0,116510.0,1.31142534]
[1755880825017,1.1506899,116520.0,116510.0,1.37293377]
[1755880825216,1.1506899,116520.0,116510.0,1.31142534]
[1755880825417,1.1506899,116520.0,116510.0,1.37293377]
[1755880825614,1.06487,116520.0,116510.0,1.62293377]
[1755880825923,0.2463596,116530.0,116520.0,0.4636299]
[1755880826126,1.1447926,116530.0,116520.0,1.47965807]
[1755880826328,1.1447926,116530.0,116520.0,1.0746299]
[1755880826625,1.1447926,116530.0,116520.0,1.47965807]
[1755880827024,0.2118826,116530.0,116520.0,1.47965807]
[1755880827322,0.2118826,116530.0,116520.0,1.48065807]
[1755880827517,0.16054,116530.0,116520.0,1.48065807]
[1755880827718,0.2463512,116540.0,116530.0,0.2357726]
[1755880827923,1.05866,116540.0,116530.0,1.22965077]
[1755880828125,1.144425,116550.0,116540.0,0.4636152]
[1755880828428,1.16381776,116550.0,116540.0,0.86884337]
[1755880829317,1.16381776,116550.0,116540.0,0.4638152]
[1755880829520,1.16381776,116550.0,116540.0,0.37801]
[1755880829914,1.16581776,116550.0,116540.0,0.37801]
[1755880830118,1.16581776,116550.0,116540.0,0.4638152]
[1755880831025,1.16781776,116550.0,116540.0,0.4024652]
[1755880831225,1.16781776,116550.0,116540.0,0.31666]
[1755880831426,1.16781776,116550.0,116540.0,0.4638152]
[1755880831627,1.57284593,116550.0,116540.0,0.4638152]
[1755880832222,1.57220593,116550.0,116540.0,0.4638152]
[1755880832430,1.16717776,116550.0,116540.0,0.4638152]
[1755880832927,1.16717776,116550.0,116540.0,0.31666]
[1755880833433,1.16717776,116550.0,116540.0,0.4638152]
[1755880833727,0.18393276,116550.0,116540.0,0.86884337]
[1755880833928,0.16454,116550.0,116540.0,1.22964337]
[1755880834123,0.004,116550.0,116540.0,2.37672337]
[1755880835029,0.02772,116550.0,116540.0,2.37672337]
[1755880835236,0.16454,116550.0,116540.0,2.37672337]
[1755880835531,0.0893,116550.0,116540.0,2.37672337]
[1755880837432,0.0893,116550.0,116540.0,1.9716952]
[1755880837730,0.0893,116550.0,116540.0,2.37672337]
[1755880839133,0.16454,116550.0,116540.0,2.37672337]
[1755880839326,0.13007,116550.0,116540.0,1.9716952]
[1755880839624,0.13007,116550.0,116540.0,2.37672337]
[1755880840330,0.004,116550.0,116540.0,2.37672337]
[1755880841530,0.02335628,116550.0,116540.0,2.37672337]
[1755880842223,0.004,116550.0,116540.0,2.37672337]
[1755880843137,0.02336221,116550.0,116540.0,2.37672337]
[1755880843723,0.02336221,116550.0,116540.0,1.9716952]
[1755880843923,0.02336221,116550.0,116540.0,2.37672337]
[1755880845832,0.004,116550.0,116540.0,2.37672337]
[1755880849731,0.0803694,116560.0,116550.0,0.2316279]
[1755880849732,0.0187894,116560.0,116550.0,0.2316279]
[1755880849940,0.0187894,116560.0,116550.0,1.21476607]
[1755880850739,0.0187894,116560.0,116550.0,0.8097379]
[1755880850945,0.0187894,116560.0,116550.0,1.21476607]
[1755880851133,0.003,116560.0,116550.0,1.46476607]
[1755880851333,1.400466,116580.0,116570.0,0.4487231]
[1755880851532,0.52534885,116580.0,116570.0,0.85395127]
[1755880851734,0.58734885,116580.0,116570.0,0.85395127]
[1755880852344,0.17598285,116580.0,116570.0,0.8097231]
[1755880852542,0.2425958,116580.0,116570.0,1.21475127]
[1755880852737,0.2425958,116580.0,116570.0,1.21575127]
[1755880853246,0.08397,116600.0,116590.0,0.4487084]
[1755880853453,0.08397,116600.0,116590.0,1.35225099]
[1755880853454,0.17686841,116600.0,116590.0,1.35225099]
[1755880853740,0.17686841,116600.0,116590.0,0.45861099]
[1755880853936,0.17597841,116600.0,116590.0,0.45861099]
[1755880854335,0.15682,116600.0,116590.0,0.86363916]
[1755880854530,0.15682,116600.0,116590.0,0.86463916]
[1755880854531,0.15716,116600.0,116590.0,0.86463916]
[1755880854743,0.15771,116600.0,116590.0,0.45961099]
[1755880854943,0.15771,116600.0,116590.0,0.86463916]
[1755880855247,0.15871,116600.0,116590.0,0.86463916]
[1755880855635,0.15871,116600.0,116590.0,0.45961099]
[1755880855830,0.15871,116600.0,116590.0,0.86463916]
[1755880856844,0.15871,116600.0,116590.0,0.45961099]
[1755880857053,0.15871,116600.0,116590.0,0.86463916]
[1755880857245,0.2444711,116600.0,116590.0,0.45961099]
[1755880858436,0.15871,116600.0,116590.0,0.45961099]
[1755880858642,0.15871,116600.0,116590.0,0.86463916]
[1755880858837,0.15871,116600.0,116590.0,0.45961099]
[1755880859033,0.15782,116600.0,116590.0,0.86463916]
[1755880859241,0.001,116600.0,116590.0,0.86463916]
[1755880859443,0.001,116600.0,116590.0,0.45961099]
[1755880859641,0.08497,116600.0,116590.0,0.86463916]
[1755880859939,0.12261,116600.0,116590.0,0.86463916]
[1755880860442,0.2444711,116600.0,116590.0,0.45961099]
[1755880861044,0.64949927,116600.0,116590.0,0.45961099]
[1755880861445,0.15871,116600.0,116590.0,0.86463916]
[1755880861641,0.15871,116600.0,116590.0,0.45961099]
[1755880861843,0.15782,116600.0,116590.0,0.86463916]
[1755880862254,0.15816,116600.0,116590.0,0.45961099]
[1755880862442,0.15782,116600.0,116590.0,0.86463916]
[1755880862751,0.15782,116600.0,116590.0,0.45961099]